bitfinex-derivatives/quotes_SOLF0:USTF0_20250309
["timestamp","ask_amount","ask_price","bid_price","bid_amount"]
[1741544646701,50.1621,126.56,126.51,43.6962032]
[1741544646902,0.06088822,126.54,126.51,43.6962032]
[1741544647498,0.06088822,126.54,126.52,52.46727451]
[1741544647697,42.36,126.64,126.53,52.46727451]
[1741544647996,52.46727451,126.69,126.58,52.46727451]
[1741544647997,42.4,126.69,126.58,52.46727451]
[1741544648197,42.4,126.69,126.61,7.8983]
[1741544648402,42.4,126.69,126.58,94.86727451]
[1741544648901,0.05407901,126.65,126.62,0.05573796]
[1741544649306,7.95057901,126.65,126.62,0.05573796]
[1741544649600,42.29407901,126.65,126.62,0.05573796]
[1741544649904,94.76135352,126.65,126.53,56.52467451]
[1741544650103,94.76135352,126.65,126.53,52.46727451]
[1741544650303,94.70727451,126.65,126.53,52.46727451]
[1741544650501,52.46727451,126.62,126.52,4.1558]
[1741544650708,46.3813,126.61,126.51,42.24]
[1741544650910,0.0576681,126.58,126.56,0.05703277]
[1741544651113,42.18,126.57,126.48,321.39987451]
[1741544651502,42.18,126.57,126.51,52.46727451]
[1741544651707,42.16,126.66,126.54,104.93454902]
[1741544651910,42.54,126.69,126.58,52.46727451]
[1741544652209,0.05624292,126.65,126.62,0.05994295]
[1741544653210,7.8976,126.63,126.62,0.05994295]
[1741544653511,42.46,126.64,126.56,4.2188]
[1741544653704,42.46,126.64,126.56,56.68607451]
[1741544654108,42.46,126.64,126.58,52.46727451]
[1741544654406,52.46727451,126.69,126.58,52.46727451]
[1741544654407,42.42,126.67,126.58,52.46727451]
[1741544654610,0.05005394,126.62,126.6,0.05521962]
[1741544654813,82.04313632,126.7,126.6,0.05521962]
[1741544655111,0.05486637,126.62,126.6,52.46727451]
[1741544655414,42.36,126.69,126.64,0.05344408]
[1741544655614,42.36,126.69,126.6,52.46727451]
[1741544655809,0.05074257,126.68,126.65,0.05051376]
[1741544656906,42.27074257,126.68,126.65,0.05051376]
[1741544657211,4.3113,126.67,126.56,317.32607451]
[1741544658114,4.3113,126.67,126.58,52.46727451]
[1741544658415,0.05725675,126.63,126.6,0.05984227]
[1741544660213,7.8989,126.61,126.6,0.05984227]
[1741544660411,0.05725675,126.63,126.6,0.05984227]
[1741544661018,7.8989,126.61,126.6,0.05984227]
[1741544662509,7.9013,126.58,126.52,49.6299]
[1741544662719,41.64,126.6,126.52,3.9431]
[1741544663010,41.64,126.6,126.51,4.0955]
[1741544663214,41.64,126.6,126.5,260.62]
[1741544663215,52.46727451,126.58,126.48,52.46727451]
[1741544663409,7.9035,126.54,126.48,52.46727451]
[1741544663610,7.96380087,126.54,126.52,0.05811274]
[1741544663810,0.06030087,126.54,126.52,0.05811274]
[1741544664213,0.06030087,126.54,126.52,7.96241274]
[1741544664515,0.06030087,126.54,126.52,0.05811274]
[1741544665018,0.06030087,126.54,126.52,7.96221274]
[1741544665318,0.06030087,126.54,126.52,0.05811274]
[1741544666111,41.42,126.61,126.53,52.46727451]
[1741544666316,4.0505,126.65,126.53,93.88727451]
[1741544666515,306.2228,126.63,126.54,4.2462]
[1741544666916,264.8228,126.63,126.54,4.2462]
[1741544667218,0.05629513,126.6,126.57,0.06009683]
[1741544667619,0.05629513,126.6,126.58,7.9003]
[1741544667821,0.05629513,126.6,126.57,0.06009683]
[1741544668012,7.95579513,126.6,126.57,0.06009683]
[1741544668212,0.05629513,126.6,126.57,0.06009683]
[1741544668722,0.05629513,126.6,126.48,52.46727451]
[1741544668933,52.52356964,126.6,126.48,52.46727451]
[1741544669120,7.9059,126.5,126.46,7.908]
[1741544669320,41.26,126.51,126.41,4.1347]
[1741544669527,82.04313632,126.65,126.48,128.65454902]
[1741544669823,4.1986,126.64,126.56,52.46727451]
[1741544670121,0.05149954,126.58,126.56,94.12727451]
[1741544670323,4.1986,126.64,126.56,94.12727451]
[1741544670527,0.05342638,126.58,126.56,94.18350803]
[1741544670823,7.8989,126.61,126.56,94.12727451]
[1741544671125,0.05908796,126.58,126.56,94.18221652]
[1741544671316,0.05908796,126.58,126.57,7.9013]
[1741544671517,4.1986,126.64,126.56,94.12727451]
[1741544671716,0.05415827,126.59,126.56,94.18177915]
[1741544671920,0.05415827,126.59,126.56,94.12727451]
[1741544672124,0.05415827,126.59,126.56,94.18771755]
[1741544672626,5.827e-05,126.59,126.58,7.9007]
[1741544673816,4.2491,126.67,126.61,7.8985]
[1741544674024,10.63618789,126.73,126.62,41.36]
[1741544674324,7.892,126.72,126.65,52.46727451]
[1741544674519,14.72338789,126.73,126.65,52.46727451]
[1741544674726,22.61478789,126.73,126.65,52.46727451]
[1741544674922,22.61478789,126.73,126.68,0.05739663]
[1741544674923,0.05317086,126.7,126.68,0.05739663]
[1741544676019,0.05317086,126.7,126.68,52.52467114]
[1741544676717,0.05317086,126.7,126.68,7.95129663]
[1741544677521,0.05317086,126.7,126.69,7.8939]
[1741544677723,3.9706,126.78,126.69,56.40727451]
[1741544678023,3.9706,126.78,126.7,54.2393]
[1741544678228,3.9706,126.78,126.69,94.50727451]
[1741544678720,7.8903,126.75,126.69,94.50727451]
[1741544679031,0.05609275,126.75,126.72,0.05936852]
[1741544680227,7.8912,126.74,126.72,0.05936852]
[1741544680831,0.05609275,126.75,126.72,0.05936852]
[1741544681526,4.268,126.81,126.73,94.24727451]
[1741544681836,14.78008789,126.82,126.76,52.46727451]
[1741544682024,10.63618789,126.82,126.76,52.46727451]
[1741544682533,4.2666,126.85,126.76,52.46727451]
[1741544682729,0.05732252,126.8,126.78,0.05563655]
[1741544683125,41.66,126.82,126.78,0.05563655]
[1741544683428,0.05630066,126.8,126.78,0.05563655]
[1741544683733,0.05630066,126.8,126.73,41.66]
[1741544684031,0.05630066,126.8,126.69,52.46727451]
[1741544684332,41.66,126.82,126.69,52.46727451]
[1741544684532,41.66,126.82,126.72,52.46727451]
[1741544684734,0.05235938,126.77,126.74,0.0595697]
[1741544684934,0.05235938,126.77,126.72,52.46727451]
[1741544685437,0.05235938,126.77,126.74,0.05590516]
[1741544685735,0.05235938,126.77,126.74,7.94640516]
[1741544685932,0.05235938,126.77,126.74,0.05590516]
[1741544686140,45.7266,126.85,126.79,7.8876]
[1741544686437,45.7266,126.85,126.78,52.46727451]
[1741544687127,45.7266,126.85,126.75,52.46727451]
[1741544687325,7.8861,126.82,126.8,0.0562707]
[1741544687530,0.05039655,126.83,126.8,0.0562707]
[1741544687730,0.05039655,126.83,126.8,7.9430707]
[1741544687936,0.05039655,126.83,126.8,0.0562707]
[1741544688531,0.05039655,126.83,126.8,52.52354521]
[1741544688733,8.1541,126.91,126.81,41.34]
[1741544688939,8.1541,126.91,126.84,52.46727451]
[1741544689640,7.881,126.9,126.84,60.35157451]
[1741544689825,8.1541,126.91,126.84,52.46727451]
[1741544690133,0.05838459,126.88,126.86,0.06073935]
[1741544691639,0.05838459,126.88,126.87,52.46727451]
[1741544692837,0.05838459,126.88,126.86,0.06073935]
[1741544694041,0.05838459,126.88,126.87,7.8827]
[1741544694243,0.05838459,126.88,126.86,0.06073935]
[1741544694537,0.05838459,126.88,126.87,7.8827]
[1741544694837,0.05838459,126.88,126.86,0.06073935]
[1741544695244,0.05838459,126.88,126.87,7.8827]
[1741544695538,49.1141,126.99,126.87,93.42727451]
[1741544695736,7.876,126.98,126.93,7.8789]
[1741544696135,8.1541,126.99,126.91,52.46727451]
[1741544696336,7.8765,126.97,126.92,7.8794]
[1741544696536,7.8765,126.97,126.94,0.05220433]
[1741544696741,0.05431285,126.96,126.94,0.05220433]
[1741544698045,7.93181285,126.96,126.94,0.05220433]
[1741544698349,0.05431285,126.96,126.94,0.05220433]
[1741544700946,7.93161285,126.96,126.94,0.05220433]
[1741544701143,0.05431285,126.96,126.94,0.05220433]
[1741544701343,7.8777,126.95,126.94,0.05220433]
[1741544701941,3.94,126.95,126.87,52.46727451]
[1741544702141,40.46,126.96,126.85,56.75797451]
[1741544702444,40.46,126.96,126.87,52.46727451]
[1741544703046,0.058439,126.93,126.9,0.05315786]
[1741544703343,7.8824,126.88,126.84,267.9643]
[1741544703544,40.42,126.92,126.84,260.08]
[1741544703741,44.3802,126.92,126.81,52.46727451]
[1741544703956,7.8858,126.82,126.79,52.46727451]
[1741544704241,40.38,126.84,126.77,312.50727451]
[1741544704645,0.05437029,126.82,126.79,0.05700656]
[1741544705153,0.05437029,126.82,126.79,52.52428107]
[1741544705651,0.05437029,126.82,126.79,0.05700656]
[1741544707442,0.05437029,126.82,126.75,52.46727451]
[1741544707952,0.05437029,126.82,126.73,52.46727451]
[1741544708355,82.04313632,126.81,126.66,52.46727451]
[1741544708650,0.05110673,126.75,126.72,0.05666319]
[1741544708856,40.43110673,126.75,126.72,0.05666319]
[1741544709055,85.97433632,126.8,126.73,52.46727451]
[1741544709245,0.0520087,126.75,126.73,52.46727451]
[1741544709442,7.8887,126.78,126.73,52.46727451]
[1741544709646,3.9312,126.8,126.73,52.46727451]
[1741544709847,0.05808178,126.75,126.73,52.52303655]
[1741544710043,3.9312,126.8,126.73,0.05576204]
[1741544710256,0.05516817,126.75,126.73,0.05576204]
[1741544710448,3.9312,126.8,126.76,7.8893]
[1741544710643,3.9312,126.8,126.73,0.05576204]
[1741544710644,40.4,126.81,126.75,52.46727451]
[1741544710848,0.05490995,126.79,126.75,52.46727451]
[1741544711151,0.05490995,126.79,126.77,0.05048821]
[1741544711346,0.05490995,126.79,126.72,56.73797451]
[1741544711743,0.05490995,126.79,126.77,0.05953979]
[1741544711948,0.05490995,126.79,126.76,52.46727451]
[1741544712250,4.0957,126.85,126.77,0.0498326]
[1741544712443,40.5,126.87,126.8,52.46727451]
[1741544712650,95.01202608,126.93,126.8,52.46727451]
[1741544712844,40.5,126.91,126.8,52.46727451]
[1741544713255,7.8837,126.86,126.8,52.46727451]
[1741544713449,0.05635677,126.87,126.84,0.052485]
[1741544713754,7.8839,126.85,126.79,48.4076]
[1741544713959,40.52,126.86,126.84,0.05033911]
[1741544714154,40.54,126.89,126.84,0.05033911]
[1741544714351,0.05452584,126.86,126.81,52.46727451]
[1741544714559,0.05452584,126.86,126.85,0.05238746]
[1741544714857,0.05452584,126.86,126.84,52.52498646]
[1741544715349,0.05452584,126.86,126.84,0.05771195]
[1741544715654,7.93792584,126.86,126.84,0.05771195]
[1741544715856,0.05452584,126.86,126.84,0.05771195]
[1741544716552,0.05452584,126.86,126.84,52.52498646]
[1741544717756,4.2789,126.92,126.84,52.52498646]
[1741544717757,44.6989,126.92,126.84,52.52498646]
[1741544718050,40.42,126.94,126.87,52.46727451]
[1741544718243,40.42,126.94,126.84,52.46727451]
[1741544719161,0.05096193,126.9,126.88,0.05608387]
[1741544719358,40.32,126.89,126.84,52.46727451]
[1741544719549,0.05096193,126.9,126.84,52.46727451]
[1741544719857,40.44,126.93,126.84,52.46727451]
[1741544720558,0.05362884,126.9,126.87,0.06032722]
[1741544720853,0.05362884,126.9,126.87,52.52760173]
[1741544721058,122.38313632,126.98,126.89,52.46727451]
[1741544721365,40.34,126.98,126.91,52.46727451]
[1741544721856,40.34,126.98,126.89,92.80727451]
[1741544722255,0.05748038,126.95,126.92,0.05243456]
[1741544722457,0.05748038,126.95,126.94,7.8783]
[1741544722659,0.05748038,126.95,126.92,0.05243456]
[1741544723055,40.51748038,126.95,126.92,0.05243456]
[1741544723263,0.05748038,126.95,126.92,52.51970907]
[1741544723452,0.05748038,126.95,126.93,7.8789]
[1741544723648,0.05748038,126.95,126.92,52.51970907]
[1741544724458,0.05748038,126.95,126.92,0.05243456]
[1741544725258,0.05748038,126.95,126.92,52.51970907]
[1741544725560,0.05748038,126.95,126.92,0.05243456]
[1741544725763,0.05748038,126.95,126.92,7.93193456]
[1741544725967,0.05748038,126.95,126.92,0.05243456]
[1741544726263,0.05748038,126.95,126.92,7.93193456]
[1741544726460,0.05748038,126.95,126.92,0.05243456]
[1741544726662,0.05748038,126.95,126.93,52.46727451]
[1741544727161,0.05748038,126.95,126.92,0.05243456]
[1741544727863,40.48,127.05,126.94,52.46727451]
[1741544728059,8.2805,127.04,126.97,52.46727451]
[1741544729066,0.05570647,127.02,126.99,0.05007718]
[1741544730369,40.32,127.01,126.99,0.05007718]
[1741544730663,40.32,127.01,126.93,4.0812]
[1741544730861,7.8756,126.99,126.95,7.8776]
[1741544731258,40.32,127.01,126.9,52.46727451]
[1741544731761,0.05181666,126.97,126.94,0.05688869]
[1741544731960,40.34,126.96,126.9,52.46727451]
[1741544732264,40.34,127.02,126.93,52.46727451]
[1741544732564,8.2805,127.04,126.96,52.46727451]
[1741544733071,0.05773864,127.01,126.99,0.05401986]
[1741544734964,0.05773864,127.01,126.99,7.92901986]
[1741544735363,0.05773864,127.01,126.99,0.05401986]
[1741544735663,44.0302,127.07,126.99,52.52129437]
[1741544736056,44.0302,127.07,127.02,7.8729]
[1741544736057,51.9006,127.07,127.02,7.8729]
[1741544736263,11.7806,127.07,127.02,7.8729]
[1741544736471,3.9102,127.07,126.99,52.46727451]
[1741544736762,44.2023,127.09,127.02,52.46727451]
[1741544736966,44.2023,127.09,127.02,52.52429349]
[1741544736967,0.05584028,127.04,127.02,52.52429349]
[1741544737168,44.2023,127.09,127.02,52.52429349]
[1741544737372,0.05053309,127.04,127.02,52.52429349]
[1741544737665,44.2023,127.09,127.02,52.52429349]
[1741544737870,0.05210705,127.04,127.03,7.8726]
[1741544738062,7.8698,127.08,127.03,7.8726]
[1741544738269,0.05329461,127.05,127.03,7.8726]
[1741544738869,0.05329461,127.05,127.03,7.8723]
[1741544739276,0.05329461,127.05,127.02,0.05274472]
[1741544739571,0.05329461,127.05,127.02,7.92564472]
[1741544739767,0.05329461,127.05,127.02,0.05274472]
[1741544740366,7.92519461,127.05,127.02,0.05274472]
[1741544740663,42.73329461,127.05,127.02,0.05274472]
[1741544740867,42.73329461,127.05,126.96,52.46727451]
[1741544741373,42.68,127.05,126.96,52.46727451]
[1741544741564,56.60957451,127.09,126.96,52.46727451]
[1741544741770,42.62,127.08,126.99,52.46727451]
[1741544741970,7.8705,127.07,126.99,52.46727451]
[1741544742170,0.05610579,127.04,127.01,0.06046921]
[1741544742367,50.4498,127.08,127.02,52.46727451]
[1741544742666,42.58,127.08,127.02,52.46727451]
[1741544742872,42.58,127.08,126.99,52.46727451]
[1741544743470,0.05501491,127.05,127.02,0.05167953]
[1741544744463,7.92701491,127.05,127.02,0.05167953]
[1741544744969,0.05501491,127.05,127.02,0.05167953]
[1741544745677,7.92691491,127.05,127.02,0.05167953]
[1741544746176,7.8721,127.04,127.02,0.05167953]
[1741544746484,42.18,127.04,126.96,32.12306774]
[1741544746776,7.8747,127.0,126.96,39.99996774]
[1741544746973,3.9423,127.03,126.96,32.12306774]
[1741544747374,7.875,127.0,126.96,40.00006774]
[1741544747566,50.035,127.0,126.96,32.12306774]
[1741544747771,0.05756354,126.99,126.97,0.05405943]
[1741544747970,0.05756354,126.99,126.97,7.93005943]
[1741544748579,0.05756354,126.99,126.98,7.8758]
[1741544748870,42.04,127.03,126.98,52.24222318]
[1741544749081,41.98,127.06,127.01,52.24222318]
[1741544749372,41.98,127.06,127.04,7.872]
[1741544749574,3.948,127.08,127.01,52.24222318]
[1741544749778,42.22,127.07,127.0,7.8744]
[1741544749967,7.8725,127.04,126.99,52.24222318]
[1741544750169,0.06007589,127.06,127.03,0.05297626]
[1741544750375,42.22,127.07,126.99,52.24222318]
[1741544750576,0.0575587,127.06,127.03,0.05494204]
[1741544751075,7.8721,127.04,127.03,0.05494204]
[1741544751276,0.0575587,127.06,127.03,0.05494204]
[1741544751669,7.8719,127.05,127.03,0.05494204]
[1741544752077,0.0575587,127.06,127.03,0.05494204]
[1741544752578,0.0575587,127.06,127.03,7.92734204]
[1741544752776,7.9289587,127.06,127.03,0.05494204]
[1741544752978,0.0575587,127.06,127.03,0.05494204]
[1741544753575,0.0575587,127.06,127.03,7.92764204]
[1741544754778,0.0575587,127.06,127.04,7.872]
[1741544755182,0.0575587,127.06,127.05,7.8715]
[1741544756182,5.87e-05,127.06,127.05,60.11372318]
[1741544757778,5.87e-05,127.06,127.03,7.92744204]
[1741544757977,5.87e-05,127.06,127.03,0.05494204]
[1741544758282,5.87e-05,127.06,127.03,7.92744204]
[1741544758582,5.87e-05,127.06,127.03,0.05494204]
[1741544759978,5.87e-05,127.06,127.04,7.8721]
[1741544760872,5.87e-05,127.06,127.05,7.8715]
[1741544761275,5.87e-05,127.06,127.03,0.05494204]
[1741544761679,7.8721,127.04,127.03,0.05494204]
[1741544762081,41.04,127.05,127.03,0.05494204]
[1741544762274,41.04,127.05,126.97,8.2715]
[1741544762474,41.04,127.05,126.96,60.11902318]
[1741544762475,4.207,127.04,126.96,60.11902318]
[1741544762674,4.207,127.04,126.94,312.00222318]
[1741544762872,41.04,127.05,126.99,52.24222318]
[1741544763078,82.04313632,127.12,127.05,7.8713]
[1741544763290,45.1478,127.11,127.04,52.24222318]
[1741544763482,0.05851106,127.09,127.07,0.05601529]
[1741544764190,0.05851106,127.09,127.07,52.29823847]
[1741544764579,0.05851106,127.09,127.07,0.05601529]
[1741544765080,10.63618789,127.15,127.08,52.24222318]
[1741544765483,51.69618789,127.15,127.08,52.24222318]
[1741544765787,10.63618789,127.15,127.11,52.24222318]
[1741544766384,0.05535637,127.14,127.12,0.05818403]
[1741544766678,5.637e-05,127.14,127.13,60.10862318]
[1741544766885,19.67356368,127.16,127.13,52.24222318]
[1741544767080,6.368e-05,127.16,127.15,60.10752318]
[1741544767476,233.2690568,127.17,127.15,60.10752318]
[1741544767477,23.10040417,127.17,127.15,52.24222318]
[1741544767783,85.08956684,127.21,127.15,52.24222318]
[1741544767986,85.08956684,127.21,127.17,52.24222318]
[1741544768179,0.04995219,127.19,127.15,52.29983767]
[1741544768374,0.04995219,127.19,127.15,52.24222318]
[1741544768580,0.04995219,127.19,127.16,0.05418137]
[1741544769079,7.8636,127.18,127.16,0.05418137]
[1741544769278,40.92995219,127.19,127.16,0.05418137]
[1741544769883,0.04995219,127.19,127.16,0.05418137]
[1741544771076,0.04995219,127.19,127.17,52.24222318]
[1741544771985,0.04995219,127.19,127.18,7.8635]
[1741544772181,137.33172634,127.32,127.17,52.24222318]
[1741544772488,12.0865,127.29,127.24,52.24222318]
[1741544772787,12.0865,127.29,127.24,60.10152318]
[1741544772986,12.0865,127.29,127.24,52.24222318]
[1741544773388,0.03235567,127.28,127.25,0.05570338]
[1741544773993,0.03235567,127.28,127.25,7.91440338]
[1741544774183,0.03235567,127.28,127.25,0.05570338]
[1741544774585,0.03235567,127.28,127.2,52.24222318]
[1741544774984,40.64,127.3,127.23,52.24222318]
[1741544775178,89.17540316,127.32,127.23,52.24222318]
[1741544775384,40.76,127.3,127.23,52.24222318]
[1741544775889,0.05124765,127.28,127.26,52.24222318]
[1741544776090,255.20371567,127.35,127.26,52.24222318]
[1741544776091,11.9378,127.37,127.26,404.76444636]
[1741544776287,40.74,127.36,127.31,52.24222318]
[1741544776483,4.0859,127.37,127.31,52.24222318]
[1741544776681,40.74,127.39,127.33,52.24222318]
[1741544776886,85.08950316,127.4,127.33,52.24222318]
[1741544777189,85.08950316,127.4,127.35,52.24222318]
[1741544777387,0.0368114,127.38,127.35,0.04985174]
[1741544777682,40.7968114,127.38,127.35,0.04985174]
[1741544778081,40.7968114,127.38,127.3,52.24222318]
[1741544778281,40.7968114,127.38,127.27,2.6003]
[1741544778488,40.76,127.38,127.29,52.24222318]
[1741544779093,40.76,127.38,127.32,52.24222318]
[1741544779294,0.05676732,127.35,127.32,60.14919692]
[1741544779690,0.05676732,127.35,127.32,104.5370201]
[1741544779891,85.08950316,127.4,127.35,7.8526]
[1741544780091,85.08950316,127.4,127.37,52.24222318]
[1741544780287,85.08950316,127.4,127.33,2.5923]
[1741544780491,7.8507,127.39,127.34,7.8531]
[1741544780686,85.08950316,127.4,127.35,52.24222318]
[1741544780992,0.02989582,127.39,127.36,0.05815477]
[1741544781587,7.88089582,127.39,127.36,0.05815477]
[1741544781787,0.02989582,127.39,127.36,0.05815477]
[1741544782296,359.34077856,127.62,127.38,52.24222318]
[1741544782495,8.2034,127.5,127.41,52.24222318]
[1741544782692,8.2034,127.5,127.43,7.8477]
[1741544782888,8.2034,127.5,127.44,52.24222318]
[1741544783089,82.04313632,127.54,127.44,52.24222318]
[1741544783286,12.2172,127.56,127.48,0.05235499]
[1741544783490,41.02,127.54,127.48,0.05235499]
[1741544783689,125.07914947,127.58,127.5,52.24222318]
[1741544783896,125.07914947,127.58,127.53,52.24222318]
[1741544784595,138.26670316,127.61,127.54,0.05549172]
[1741544785296,7.8382,127.59,127.54,0.05549172]
[1741544785493,138.26670316,127.61,127.54,0.05549172]
[1741544786190,7.8382,127.59,127.54,0.05549172]
[1741544786393,138.26670316,127.61,127.54,0.05549172]
[1741544786695,85.08950316,127.61,127.56,52.24222318]
[1741544787291,85.08950316,127.61,127.57,0.05784216]
[1741544787492,40.84,127.6,127.57,0.05784216]
[1741544787996,85.08950316,127.61,127.57,0.05784216]
[1741544788193,41.0,127.6,127.57,0.05784216]
[1741544788392,41.0,127.6,127.51,259.02]
[1741544788597,8.5165,127.59,127.51,259.02]
[1741544789009,16.3548,127.59,127.51,259.02]
[1741544789298,8.5165,127.59,127.51,259.02]
[1741544789500,8.5165,127.59,127.45,2.5863]
[1741544789501,52.24222318,127.58,127.47,52.24222318]
[1741544789690,0.05453239,127.56,127.45,259.02]
[1741544789894,40.94,127.55,127.51,0.05396439]
[1741544790093,7.8435,127.51,127.45,259.02]
[1741544790289,40.96,127.5,127.44,52.24222318]
[1741544790496,45.2318,127.5,127.41,52.24222318]
[1741544790697,12.0892,127.49,127.44,7.8473]
[1741544790894,4.2447,127.49,127.42,52.24222318]
[1741544791103,7.846,127.47,127.42,60.09072318]
[1741544791295,7.846,127.47,127.39,299.88]
[1741544791296,40.94,127.46,127.44,0.05985274]
[1741544791906,40.99654735,127.46,127.44,0.05985274]
[1741544792204,7.8478,127.44,127.34,299.8]
[1741544792499,0.05654735,127.46,127.38,93.22222318]
[1741544792804,41.0,127.48,127.42,52.24222318]
[1741544792999,41.0,127.48,127.38,93.22222318]
[1741544793000,41.0,127.48,127.38,52.24222318]
[1741544793303,0.05503979,127.46,127.44,0.05440265]
[1741544793507,0.05503979,127.46,127.44,52.29662583]
[1741544793701,0.05503979,127.46,127.44,0.05440265]
[1741544795207,41.16,127.45,127.44,0.05440265]
[1741544797994,0.05503979,127.46,127.44,0.05440265]
[1741544798699,0.05503979,127.46,127.4,7.8493]
[1741544798901,0.05503979,127.46,127.38,52.24222318]
[1741544799204,40.9,127.48,127.42,52.24222318]
[1741544799603,40.9,127.48,127.39,52.24222318]
[1741544799800,8.2151,127.49,127.36,40.84]
[1741544799801,0.06006703,127.44,127.42,52.3005257]
[1741544800000,0.06006703,127.44,127.43,7.848]
[1741544800301,0.06042337,127.44,127.42,0.05830252]
[1741544802103,0.06042337,127.44,127.38,52.24222318]
[1741544802903,0.06042337,127.44,127.4,7.8494]
[1741544803105,0.06042337,127.44,127.38,52.24222318]
[1741544803299,0.06042337,127.44,127.41,0.05982435]
[1741544803300,7.8486,127.42,127.41,0.05982435]
[1741544803505,40.48,127.42,127.32,52.24222318]
[1741544803699,4.2747,127.41,127.32,52.24222318]
[1741544803905,7.8524,127.36,127.32,52.24222318]
[1741544804205,40.44,127.37,127.32,52.24222318]
[1741544804410,40.44,127.37,127.33,7.8538]
[1741544804611,0.05144035,127.36,127.33,7.9062649]
[1741544804909,0.05144035,127.36,127.33,0.0524649]
[1741544805104,0.05144035,127.36,127.33,7.9063649]
[1741544805304,0.05144035,127.36,127.33,0.0524649]
[1741544805706,7.8544,127.33,127.27,7.8573]
[1741544806009,40.26,127.32,127.26,52.24222318]
[1741544806208,7.8577,127.28,127.22,7.8608]
[1741544806516,40.26,127.27,127.2,52.24222318]
[1741544806809,40.26,127.27,127.25,7.8589]
[1741544807009,40.2,127.3,127.25,52.24222318]
[1741544807403,0.0561959,127.29,127.26,0.0590305]
[1741544808812,4.1473,127.34,127.28,52.24222318]
[1741544809415,8.3739,127.34,127.28,60.09932318]
[1741544809616,8.3739,127.34,127.26,52.24222318]
[1741544810115,8.3739,127.34,127.31,7.8549]
[1741544810116,4.1473,127.34,127.31,7.8549]
[1741544810513,0.05936142,127.34,127.33,7.8542]
[1741544810719,0.05936142,127.34,127.32,52.24222318]
[1741544811016,0.05936142,127.34,127.32,0.05895703]
[1741544811215,0.05936142,127.34,127.32,7.91375703]
[1741544811417,0.05936142,127.34,127.32,0.05895703]
[1741544811812,0.05936142,127.34,127.33,7.8542]
[1741544812316,0.05936142,127.34,127.32,0.05895703]
[1741544813119,39.94,127.33,127.26,52.24222318]
[1741544813415,7.8561,127.3,127.23,52.24222318]
[1741544813622,39.92,127.29,127.2,52.24222318]
[1741544813823,39.9,127.28,127.2,52.24222318]
[1741544814120,4.1786,127.27,127.2,52.24222318]
[1741544814318,4.1786,127.27,127.23,0.05572457]
[1741544814319,0.05115458,127.25,127.23,0.05572457]
[1741544814521,0.05115458,127.25,127.24,7.8597]
[1741544814815,39.86,127.32,127.24,52.24222318]
[1741544815216,39.86,127.32,127.28,7.857]
[1741544815616,39.86,127.32,127.27,52.24222318]
[1741544815813,267.3038,127.34,127.3,52.24222318]
[1741544815814,8.2038,127.34,127.3,52.24222318]
[1741544816015,6.134e-05,127.31,127.3,52.24222318]
[1741544816210,6.134e-05,127.31,127.3,60.09822318]
[1741544816416,44.0346,127.36,127.3,52.24222318]
[1741544816813,44.0346,127.36,127.32,7.8545]
[1741544817022,44.0346,127.36,127.3,52.24222318]
[1741544817210,0.05812831,127.35,127.33,0.05661161]
[1741544817615,0.05812831,127.35,127.33,52.29883479]
[1741544818121,0.05812831,127.35,127.34,7.8536]
[1741544818418,2.831e-05,127.35,127.34,7.8536]
[1741544819417,4.2546,127.41,127.33,52.29883479]
[1741544819621,4.2546,127.41,127.36,52.24222318]
[1741544820519,0.05293046,127.4,127.37,0.05435623]
[1741544820914,0.05293046,127.4,127.39,7.8505]
[1741544821419,0.05293046,127.4,127.37,52.29657941]
[1741544821420,0.05293046,127.4,127.38,7.851]
[1741544821613,0.05293046,127.4,127.37,52.29657941]
[1741544822118,1.36631331,127.52,127.37,52.29657941]
[1741544822119,82.04313632,127.51,127.38,52.24222318]
[1741544822321,43.6878,127.5,127.41,52.24222318]
[1741544822523,7.8454,127.48,127.42,7.8483]
[1741544822823,43.6878,127.5,127.41,52.24222318]
[1741544823019,52.24222318,127.47,127.27,451.06]
[1741544823217,52.24222318,127.44,127.28,2.7239]
[1741544823518,384.94743632,127.46,127.38,6.2e-07]
[1741544823519,138.3256595,127.43,127.38,6.2e-07]
[1741544823717,7.89997703,127.39,127.27,52.24222318]
[1741544823910,52.24222318,127.4,127.3,52.24222318]
[1741544823911,43.8443,127.38,127.3,52.24222318]
[1741544824516,43.8443,127.38,127.26,52.24222318]
[1741544824815,0.05221159,127.35,127.23,54.96612318]
[1741544825119,39.62,127.34,127.23,54.96612318]